[Event "Titled Tuesday Blitz May 23 Late 2023"]
[White "D`Arruda, Ricardo D."]
[Black "Spitzl, Vinzent"]
[WhiteFideId "100692"]
[BlackFideId "12901253"]
[WhiteElo "2440"]
[BlackElo "2225"]
[Result "1-0"]
[Round "11"]
[TimeControl "180+2"]
[Date "2023.05.23"]
[WhiteClock "0:01:40"]
[BlackClock "0:00:06"]

1. Nf3 {[%clk 0:02:54]}  d5 {[%clk 0:02:59]} 2. d4 {[%clk 0:02:53]}  Nf6 {[%clk 0:02:59]} 3. c4 {[%clk 0:02:53]}  e6 {[%clk 0:02:59]} 4. e3 {[%clk 0:02:53]}  Be7 {[%clk 0:02:57]} 5. Nc3 {[%clk 0:02:53]}  O-O {[%clk 0:02:56]} 6. Bd3 {[%clk 0:02:53]}  b6 {[%clk 0:02:57]} 7. O-O {[%clk 0:02:52]}  Bb7 {[%clk 0:02:57]} 8. Qe2 {[%clk 0:02:50]}  dxc4 {[%clk 0:02:56]} 9. Bxc4 {[%clk 0:02:51]}  Nbd7 {[%clk 0:02:54]} 10. e4 {[%clk 0:02:50]}  c5 {[%clk 0:02:50]} 11. d5 {[%clk 0:02:50]}  exd5 {[%clk 0:02:48]} 12. exd5 {[%clk 0:02:50]}  Bd6 {[%clk 0:02:44]} 13. Bg5 {[%clk 0:02:49]}  a6 {[%clk 0:02:44]} 14. a4 {[%clk 0:02:48]}  Re8 {[%clk 0:02:42]} 15. Qd2 {[%clk 0:02:41]}  Qc7 {[%clk 0:02:41]} 16. Rfe1 {[%clk 0:02:38]}  Ne5 {[%clk 0:02:25]} 17. Bxf6 {[%clk 0:02:12]}  Nxf3+ {[%clk 0:02:25]} 18. gxf3 {[%clk 0:02:10]}  Bf4 {[%clk 0:02:04]} 19. Qd3 {[%clk 0:02:06]}  gxf6 {[%clk 0:02:03]} 20. Qf5 {[%clk 0:02:05]}  Be5 {[%clk 0:01:43]} 21. Bd3 {[%clk 0:01:59]}  Bxh2+ {[%clk 0:01:15]} 22. Kh1 {[%clk 0:01:58]}  Re5 {[%clk 0:01:15]} 23. Qxh7+ {[%clk 0:01:57]}  Kf8 {[%clk 0:01:15]} 24. Qxh2 {[%clk 0:01:54]}  Ke7 {[%clk 0:00:57]} 25. Rxe5+ {[%clk 0:01:52]}  fxe5 {[%clk 0:00:57]} 26. Re1 {[%clk 0:01:51]}  f6 {[%clk 0:00:47]} 27. Qh7+ {[%clk 0:01:50]}  Kd8 {[%clk 0:00:46]} 28. Qxc7+ {[%clk 0:01:50]}  Kxc7 {[%clk 0:00:46]} 29. Rg1 {[%clk 0:01:48]}  Rh8+ {[%clk 0:00:37]} 30. Kg2 {[%clk 0:01:47]}  Kd6 {[%clk 0:00:34]} 31. Kf1 {[%clk 0:01:47]}  Bxd5 {[%clk 0:00:18]} 32. Nxd5 {[%clk 0:01:46]}  Kxd5 {[%clk 0:00:19]} 33. Bxa6 {[%clk 0:01:46]}  c4 {[%clk 0:00:15]} 34. Rg4 {[%clk 0:01:43]}  Rh1+ {[%clk 0:00:09]} 35. Kg2 {[%clk 0:01:41]}  Rb1 {[%clk 0:00:09]} 36. Bxc4+ {[%clk 0:01:41]}  Kd6 {[%clk 0:00:09]} 37. b3 {[%clk 0:01:41]}  Rc1 {[%clk 0:00:09]} 38. Rg6 {[%clk 0:01:40]}  Ke7 {[%clk 0:00:08]} 39. Rg7+ {[%clk 0:01:40]}  Kd6 {[%clk 0:00:06]} 40. Rf7 {[%clk 0:01:40]} 1-0


[Site "https://www.chess.com"]

[Event "Titled Tuesday Blitz May 23 Late 2023"]
[White "Pires, Marcos Vinicius Torsani"]
[Black "Safin, Robert"]
[WhiteFideId "2118939"]
[BlackFideId "34189120"]
[WhiteElo "2273"]
[BlackElo "2295"]
[Result "0-1"]
[Round "11"]
[TimeControl "180+2"]
[Date "2023.05.23"]
[WhiteClock "0:00:04"]
[BlackClock "0:00:54"]

1. e4 {[%clk 0:03:00]}  c6 {[%clk 0:02:59]} 2. c4 {[%clk 0:02:58]}  d5 {[%clk 0:03:00]} 3. exd5 {[%clk 0:02:59]}  cxd5 {[%clk 0:03:00]} 4. cxd5 {[%clk 0:02:59]}  Nf6 {[%clk 0:02:59]} 5. Nc3 {[%clk 0:03:00]}  Nxd5 {[%clk 0:02:59]} 6. Bc4 {[%clk 0:03:00]}  e6 {[%clk 0:02:58]} 7. Nf3 {[%clk 0:02:59]}  Be7 {[%clk 0:02:56]} 8. O-O {[%clk 0:03:00]}  O-O {[%clk 0:02:56]} 9. d4 {[%clk 0:03:01]}  Nxc3 {[%clk 0:02:53]} 10. bxc3 {[%clk 0:03:00]}  Nd7 {[%clk 0:02:48]} 11. Bd3 {[%clk 0:02:54]}  Qc7 {[%clk 0:02:45]} 12. Qc2 {[%clk 0:02:49]}  h6 {[%clk 0:02:41]} 13. c4 {[%clk 0:02:42]}  b6 {[%clk 0:02:40]} 14. Qe2 {[%clk 0:02:34]}  Bb7 {[%clk 0:02:39]} 15. a4 {[%clk 0:02:28]}  Rfd8 {[%clk 0:02:37]} 16. d5 {[%clk 0:02:16]}  Nc5 {[%clk 0:02:30]} 17. Bb1 {[%clk 0:01:58]}  Bf6 {[%clk 0:02:14]} 18. Ra3 {[%clk 0:01:39]}  exd5 {[%clk 0:02:14]} 19. cxd5 {[%clk 0:01:29]}  Rxd5 {[%clk 0:02:14]} 20. Qc2 {[%clk 0:01:26]}  g6 {[%clk 0:02:09]} 21. h3 {[%clk 0:00:56]}  h5 {[%clk 0:02:05]} 22. Re1 {[%clk 0:00:45]}  Rad8 {[%clk 0:02:03]} 23. Bb2 {[%clk 0:00:41]}  Bxb2 {[%clk 0:01:55]} 24. Qxb2 {[%clk 0:00:42]}  Qf4 {[%clk 0:01:42]} 25. Rae3 {[%clk 0:00:41]}  Rd1 {[%clk 0:01:31]} 26. Rxd1 {[%clk 0:00:30]}  Rxd1+ {[%clk 0:01:30]} 27. Ne1 {[%clk 0:00:30]}  Rd8 {[%clk 0:01:19]} 28. a5 {[%clk 0:00:30]}  bxa5 {[%clk 0:01:09]} 29. Qb5 {[%clk 0:00:26]}  Qb4 {[%clk 0:01:04]} 30. Re8+ {[%clk 0:00:17]}  Rxe8 {[%clk 0:01:02]} 31. Qxe8+ {[%clk 0:00:18]}  Kg7 {[%clk 0:01:02]} 32. Qe5+ {[%clk 0:00:18]}  Kh7 {[%clk 0:01:01]} 33. Bc2 {[%clk 0:00:18]}  Be4 {[%clk 0:00:57]} 34. Kf1 {[%clk 0:00:10]}  Qc4+ {[%clk 0:00:55]} 35. Kg1 {[%clk 0:00:04]}  Bxc2 {[%clk 0:00:54]} 0-1


[Site "https://www.chess.com"]

[Event "Titled Tuesday Blitz May 23 Late 2023"]
[White "Prydun, Andriy"]
[Black "Toncheva, Nadya"]
[WhiteFideId "14145898"]
[BlackFideId "2924056"]
[WhiteElo "2164"]
[BlackElo "2101"]
[Result "0-1"]
[Round "11"]
[TimeControl "180+2"]
[Date "2023.05.23"]
[WhiteClock "0:00:00"]
[BlackClock "0:00:05"]

1. d4 {[%clk 0:02:58]}  d5 {[%clk 0:02:59]} 2. Nf3 {[%clk 0:02:51]}  Nf6 {[%clk 0:02:58]} 3. Ne5 {[%clk 0:02:51]}  Nbd7 {[%clk 0:02:55]} 4. Nd3 {[%clk 0:02:50]}  e6 {[%clk 0:02:55]} 5. Be3 {[%clk 0:02:48]}  Bd6 {[%clk 0:02:52]} 6. Nd2 {[%clk 0:02:48]}  O-O {[%clk 0:02:51]} 7. Nb3 {[%clk 0:02:47]}  c6 {[%clk 0:02:51]} 8. g3 {[%clk 0:02:46]}  e5 {[%clk 0:02:50]} 9. Bg2 {[%clk 0:02:46]}  e4 {[%clk 0:02:38]} 10. Nf4 {[%clk 0:02:44]}  Nb6 {[%clk 0:02:35]} 11. Bf1 {[%clk 0:01:35]}  Qe7 {[%clk 0:02:25]} 12. h3 {[%clk 0:01:22]}  Nc4 {[%clk 0:02:19]} 13. Qc1 {[%clk 0:01:21]}  a5 {[%clk 0:02:08]} 14. a4 {[%clk 0:01:18]}  Bxf4 {[%clk 0:01:19]} 15. Bxf4 {[%clk 0:01:16]}  e3 {[%clk 0:01:18]} 16. Bxe3 {[%clk 0:01:16]}  Re8 {[%clk 0:01:11]} 17. Bg5 {[%clk 0:00:59]}  Qb4+ {[%clk 0:01:09]} 18. Bd2 {[%clk 0:00:54]}  Qd6 {[%clk 0:00:49]} 19. Bf4 {[%clk 0:00:42]}  Qb4+ {[%clk 0:00:48]} 20. Bd2 {[%clk 0:00:35]}  Qe7 {[%clk 0:00:48]} 21. Bg5 {[%clk 0:00:35]}  h6 {[%clk 0:00:48]} 22. Bxf6 {[%clk 0:00:30]}  Qxf6 {[%clk 0:00:49]} 23. Qf4 {[%clk 0:00:29]}  Bf5 {[%clk 0:00:47]} 24. g4 {[%clk 0:00:12]}  Bxc2 {[%clk 0:00:47]} 25. Qxf6 {[%clk 0:00:12]}  gxf6 {[%clk 0:00:47]} 26. Nd2 {[%clk 0:00:10]}  Nxb2 {[%clk 0:00:45]} 27. Bg2 {[%clk 0:00:04]}  Nxa4 {[%clk 0:00:30]} 28. O-O {[%clk 0:00:03]}  b5 {[%clk 0:00:27]} 29. e4 {[%clk 0:00:02]}  dxe4 {[%clk 0:00:26]} 30. Rfc1 {[%clk 0:00:02]}  Bd3 {[%clk 0:00:25]} 31. Rxc6 {[%clk 0:00:02]}  Kg7 {[%clk 0:00:24]} 32. Nf1 {[%clk 0:00:02]}  Re6 {[%clk 0:00:20]} 33. Rc7 {[%clk 0:00:02]}  Nb6 {[%clk 0:00:16]} 34. Ne3 {[%clk 0:00:01]}  a4 {[%clk 0:00:13]} 35. Nf5+ {[%clk 0:00:01]}  Kg6 {[%clk 0:00:13]} 36. Nh4+ {[%clk 0:00:01]}  Kg5 {[%clk 0:00:12]} 37. Nf5 {[%clk 0:00:02]}  a3 {[%clk 0:00:11]} 38. Rc5 {[%clk 0:00:02]}  Kg6 {[%clk 0:00:11]} 39. Nh4+ {[%clk 0:00:02]}  Kh7 {[%clk 0:00:11]} 40. Nf5 {[%clk 0:00:03]}  a2 {[%clk 0:00:11]} 41. Rc7 {[%clk 0:00:02]}  Kg6 {[%clk 0:00:10]} 42. Nh4+ {[%clk 0:00:01]}  Kg5 {[%clk 0:00:11]} 43. Nf5 {[%clk 0:00:02]}  b4 {[%clk 0:00:08]} 44. Rxf7 {[%clk 0:00:02]}  Kf4 {[%clk 0:00:07]} 45. Kh2 {[%clk 0:00:02]}  b3 {[%clk 0:00:06]} 46. Ne3 {[%clk 0:00:02]}  b2 {[%clk 0:00:05]} 47. Rg1 {[%clk 0:00:00]}  b1=Q {[%clk 0:00:05]} 0-1


[Site "https://www.chess.com"]

[Event "Titled Tuesday Blitz May 23 Late 2023"]
[White "rikchessmx"]
[Black "Balla, Tamas-Kristof"]
[BlackFideId "1208497"]
[WhiteElo "2318"]
[BlackElo "2334"]
[Result "1-0"]
[Round "11"]
[TimeControl "180+2"]
[Date "2023.05.23"]
[WhiteClock "0:01:39"]
[BlackClock "0:00:13"]

1. e4 {[%clk 0:03:00]}  d5 {[%clk 0:02:48]} 2. exd5 {[%clk 0:03:00]}  Qxd5 {[%clk 0:02:49]} 3. Nc3 {[%clk 0:02:59]}  Qa5 {[%clk 0:02:49]} 4. Bc4 {[%clk 0:02:58]}  Nf6 {[%clk 0:02:47]} 5. d3 {[%clk 0:02:58]}  c5 {[%clk 0:02:46]} 6. h3 {[%clk 0:02:57]}  Nc6 {[%clk 0:02:45]} 7. Bd2 {[%clk 0:02:57]}  Qd8 {[%clk 0:02:44]} 8. f4 {[%clk 0:02:55]}  e6 {[%clk 0:02:42]} 9. Nf3 {[%clk 0:02:55]}  a6 {[%clk 0:02:42]} 10. Qe2 {[%clk 0:02:53]}  b5 {[%clk 0:02:40]} 11. Bb3 {[%clk 0:02:53]}  Bd6 {[%clk 0:02:38]} 12. O-O-O {[%clk 0:02:51]}  O-O {[%clk 0:02:32]} 13. g4 {[%clk 0:02:51]}  Qc7 {[%clk 0:02:30]} 14. g5 {[%clk 0:02:47]}  Nh5 {[%clk 0:02:29]} 15. Rhg1 {[%clk 0:02:39]}  Nxf4 {[%clk 0:02:28]} 16. Qf1 {[%clk 0:02:35]}  Ng6 {[%clk 0:01:39]} 17. h4 {[%clk 0:02:35]}  Bf4 {[%clk 0:01:39]} 18. h5 {[%clk 0:02:35]}  Bxd2+ {[%clk 0:01:39]} 19. Rxd2 {[%clk 0:02:31]}  Nge7 {[%clk 0:01:38]} 20. Ne4 {[%clk 0:02:29]}  Na5 {[%clk 0:01:22]} 21. Nf6+ {[%clk 0:02:12]}  Kh8 {[%clk 0:01:22]} 22. Ng4 {[%clk 0:02:07]}  Nxb3+ {[%clk 0:01:20]} 23. axb3 {[%clk 0:02:06]}  Qf4 {[%clk 0:01:19]} 24. Kb1 {[%clk 0:02:03]}  Bb7 {[%clk 0:01:17]} 25. Rf2 {[%clk 0:02:03]}  Nf5 {[%clk 0:01:06]} 26. g6 {[%clk 0:01:56]}  fxg6 {[%clk 0:01:02]} 27. hxg6 {[%clk 0:01:56]}  Ne3 {[%clk 0:00:46]} 28. Qh3 {[%clk 0:01:51]}  h6 {[%clk 0:00:42]} 29. Nfe5 {[%clk 0:01:49]}  Nxg4 {[%clk 0:00:19]} 30. Rxf4 {[%clk 0:01:46]}  Rxf4 {[%clk 0:00:18]} 31. Rxg4 {[%clk 0:01:40]}  Rf1+ {[%clk 0:00:13]} 32. Qxf1 {[%clk 0:01:39]} 1-0


[Site "https://www.chess.com"]

[Event "Titled Tuesday Blitz May 23 Late 2023"]
[White "FuenfgegenWilly"]
[Black "Tologon tegin, Semetei"]
[BlackFideId "13800574"]
[WhiteElo "2373"]
[BlackElo "2247"]
[Result "0-1"]
[Round "11"]
[TimeControl "180+2"]
[Date "2023.05.23"]
[WhiteClock "0:00:09"]
[BlackClock "0:00:59"]

1. b3 {[%clk 0:03:00]}  d5 {[%clk 0:02:55]} 2. Bb2 {[%clk 0:03:01]}  c5 {[%clk 0:02:55]} 3. e3 {[%clk 0:03:02]}  Nc6 {[%clk 0:02:55]} 4. Bb5 {[%clk 0:03:02]}  Bd7 {[%clk 0:02:55]} 5. Nf3 {[%clk 0:03:01]}  Rc8 {[%clk 0:02:54]} 6. c4 {[%clk 0:02:57]}  dxc4 {[%clk 0:02:53]} 7. Bxc4 {[%clk 0:02:53]}  Nf6 {[%clk 0:02:53]} 8. O-O {[%clk 0:02:51]}  Bg4 {[%clk 0:02:49]} 9. h3 {[%clk 0:02:50]}  Bh5 {[%clk 0:02:48]} 10. d4 {[%clk 0:02:28]}  cxd4 {[%clk 0:02:40]} 11. exd4 {[%clk 0:02:29]}  e6 {[%clk 0:02:39]} 12. Re1 {[%clk 0:02:24]}  Be7 {[%clk 0:02:39]} 13. g4 {[%clk 0:02:11]}  Bg6 {[%clk 0:02:37]} 14. Nc3 {[%clk 0:02:00]}  O-O {[%clk 0:02:36]} 15. d5 {[%clk 0:01:55]}  exd5 {[%clk 0:02:32]} 16. Nxd5 {[%clk 0:01:56]}  Nxd5 {[%clk 0:02:32]} 17. Bxd5 {[%clk 0:01:55]}  Bf6 {[%clk 0:02:31]} 18. Bxf6 {[%clk 0:01:47]}  Qxf6 {[%clk 0:02:32]} 19. Kg2 {[%clk 0:01:45]}  Rfd8 {[%clk 0:02:27]} 20. Qe2 {[%clk 0:01:31]}  h5 {[%clk 0:02:07]} 21. Rad1 {[%clk 0:01:28]}  hxg4 {[%clk 0:02:03]} 22. hxg4 {[%clk 0:01:29]}  Qf4 {[%clk 0:01:59]} 23. Nh4 {[%clk 0:01:09]}  Nd4 {[%clk 0:01:53]} 24. Nxg6 {[%clk 0:01:05]}  Nxe2 {[%clk 0:01:50]} 25. Nxf4 {[%clk 0:00:47]}  Nxf4+ {[%clk 0:01:51]} 26. Kf3 {[%clk 0:00:41]}  Nxd5 {[%clk 0:01:51]} 27. Rd3 {[%clk 0:00:36]}  Nb4 {[%clk 0:01:46]} 28. Rxd8+ {[%clk 0:00:35]}  Rxd8 {[%clk 0:01:47]} 29. Re7 {[%clk 0:00:35]}  Rb8 {[%clk 0:01:47]} 30. a3 {[%clk 0:00:35]}  Nc6 {[%clk 0:01:40]} 31. Rc7 {[%clk 0:00:35]}  Kf8 {[%clk 0:01:39]} 32. b4 {[%clk 0:00:35]}  a6 {[%clk 0:01:39]} 33. Kf4 {[%clk 0:00:31]}  Ke8 {[%clk 0:01:37]} 34. g5 {[%clk 0:00:30]}  g6 {[%clk 0:01:35]} 35. f3 {[%clk 0:00:29]}  Ne7 {[%clk 0:01:29]} 36. Ke5 {[%clk 0:00:25]}  Kd8 {[%clk 0:01:28]} 37. Rc1 {[%clk 0:00:26]}  Rc8 {[%clk 0:01:19]} 38. Rd1+ {[%clk 0:00:20]}  Ke8 {[%clk 0:01:19]} 39. Kf6 {[%clk 0:00:21]}  Rc6+ {[%clk 0:01:16]} 40. Kg7 {[%clk 0:00:21]}  Nf5+ {[%clk 0:01:16]} 41. Kg8 {[%clk 0:00:22]}  Rc3 {[%clk 0:01:10]} 42. Re1+ {[%clk 0:00:22]}  Re3 {[%clk 0:01:10]} 43. Rc1 {[%clk 0:00:21]}  Rxf3 {[%clk 0:01:09]} 44. Rc8+ {[%clk 0:00:20]}  Kd7 {[%clk 0:01:09]} 45. Rb8 {[%clk 0:00:19]}  Nd6 {[%clk 0:01:09]} 46. a4 {[%clk 0:00:18]}  Rf5 {[%clk 0:01:07]} 47. a5 {[%clk 0:00:17]}  Rxg5 {[%clk 0:01:07]} 48. Kf8 {[%clk 0:00:17]}  Rb5 {[%clk 0:01:06]} 49. Ra8 {[%clk 0:00:16]}  Rxb4 {[%clk 0:01:04]} 50. Kg7 {[%clk 0:00:16]}  Rb5 {[%clk 0:01:03]} 51. Kf6 {[%clk 0:00:14]}  Rxa5 {[%clk 0:01:03]} 52. Rg8 {[%clk 0:00:11]}  Rf5+ {[%clk 0:01:02]} 53. Kg7 {[%clk 0:00:12]}  a5 {[%clk 0:01:02]} 54. Kf8 {[%clk 0:00:13]}  a4 {[%clk 0:01:01]} 55. Rh8 {[%clk 0:00:12]}  a3 {[%clk 0:01:01]} 56. Rh2 {[%clk 0:00:13]}  Ra5 {[%clk 0:00:59]} 57. Ra2 {[%clk 0:00:12]}  b5 {[%clk 0:00:59]} 58. Ra1 {[%clk 0:00:09]}  b4 {[%clk 0:00:59]} 0-1


[Site "https://www.chess.com"]

[Event "Titled Tuesday Blitz May 23 Late 2023"]
[White "Gurevich, Dmitry"]
[Black "Bashkansky, Ethan"]
[WhiteFideId "2000407"]
[BlackFideId "2071533"]
[WhiteElo "2506"]
[BlackElo "2354"]
[Result "1-0"]
[Round "11"]
[TimeControl "180+2"]
[Date "2023.05.23"]
[WhiteClock "0:01:07"]
[BlackClock "0:00:06"]

1. d4 {[%clk 0:03:00]}  f5 {[%clk 0:02:59]} 2. Nf3 {[%clk 0:02:59]}  Nf6 {[%clk 0:03:00]} 3. Bg5 {[%clk 0:02:59]}  e6 {[%clk 0:02:58]} 4. Nbd2 {[%clk 0:02:58]}  Be7 {[%clk 0:02:57]} 5. Bxf6 {[%clk 0:02:57]}  Bxf6 {[%clk 0:02:57]} 6. e4 {[%clk 0:02:57]}  O-O {[%clk 0:02:54]} 7. e5 {[%clk 0:02:57]}  Be7 {[%clk 0:02:54]} 8. Bc4 {[%clk 0:02:57]}  a6 {[%clk 0:02:42]} 9. a4 {[%clk 0:02:53]}  b6 {[%clk 0:02:40]} 10. d5 {[%clk 0:02:52]}  Kh8 {[%clk 0:02:30]} 11. Nb3 {[%clk 0:02:48]}  Ra7 {[%clk 0:02:15]} 12. O-O {[%clk 0:02:45]}  exd5 {[%clk 0:02:12]} 13. Bxd5 {[%clk 0:02:40]}  Bb7 {[%clk 0:02:06]} 14. Bxb7 {[%clk 0:02:35]}  Rxb7 {[%clk 0:02:07]} 15. Qd3 {[%clk 0:02:28]}  Qe8 {[%clk 0:01:54]} 16. Rad1 {[%clk 0:02:18]}  a5 {[%clk 0:01:40]} 17. Rfe1 {[%clk 0:02:14]}  Qf7 {[%clk 0:01:28]} 18. Nbd4 {[%clk 0:02:08]}  Bc5 {[%clk 0:01:21]} 19. e6 {[%clk 0:02:04]}  dxe6 {[%clk 0:01:00]} 20. Nxe6 {[%clk 0:02:02]}  Re8 {[%clk 0:00:54]} 21. Nxc5 {[%clk 0:01:36]}  bxc5 {[%clk 0:00:53]} 22. Ng5 {[%clk 0:01:18]}  Rxe1+ {[%clk 0:00:21]} 23. Rxe1 {[%clk 0:01:17]}  Qg8 {[%clk 0:00:19]} 24. Qd5 {[%clk 0:01:09]}  h6 {[%clk 0:00:06]} 25. Qxg8+ {[%clk 0:01:08]}  Kxg8 {[%clk 0:00:06]} 26. Re8# {[%clk 0:01:07]} 1-0


[Site "https://www.chess.com"]

[Event "Titled Tuesday Blitz May 23 Late 2023"]
[White "Hernandez Leon, Alberto"]
[Black "Rottenwohrer Suarez, Juan"]
[WhiteFideId "2272555"]
[BlackFideId "32068182"]
[WhiteElo "2239"]
[BlackElo "2174"]
[Result "0-1"]
[Round "11"]
[TimeControl "180+2"]
[Date "2023.05.23"]
[WhiteClock "0:00:13"]
[BlackClock "0:00:07"]

1. d4 {[%clk 0:03:00]}  Nf6 {[%clk 0:02:59]} 2. c4 {[%clk 0:03:00]}  g6 {[%clk 0:02:56]} 3. Nc3 {[%clk 0:02:59]}  Bg7 {[%clk 0:02:56]} 4. e4 {[%clk 0:02:59]}  d6 {[%clk 0:02:57]} 5. Nf3 {[%clk 0:02:59]}  O-O {[%clk 0:02:57]} 6. Be2 {[%clk 0:03:00]}  e5 {[%clk 0:02:58]} 7. Be3 {[%clk 0:03:00]}  exd4 {[%clk 0:02:55]} 8. Nxd4 {[%clk 0:03:00]}  Re8 {[%clk 0:02:56]} 9. f3 {[%clk 0:03:00]}  c6 {[%clk 0:02:56]} 10. Bf2 {[%clk 0:03:00]}  d5 {[%clk 0:02:44]} 11. exd5 {[%clk 0:03:01]}  cxd5 {[%clk 0:02:44]} 12. c5 {[%clk 0:03:01]}  Nbd7 {[%clk 0:02:31]} 13. b4 {[%clk 0:02:53]}  a5 {[%clk 0:02:28]} 14. a3 {[%clk 0:02:47]}  Ne5 {[%clk 0:02:24]} 15. O-O {[%clk 0:02:45]}  Nh5 {[%clk 0:02:24]} 16. g3 {[%clk 0:02:35]}  Nc4 {[%clk 0:01:52]} 17. Bxc4 {[%clk 0:02:13]}  dxc4 {[%clk 0:01:52]} 18. Qd2 {[%clk 0:02:10]}  Bf5 {[%clk 0:01:39]} 19. Ncb5 {[%clk 0:01:47]}  Bd3 {[%clk 0:01:34]} 20. Rfe1 {[%clk 0:01:42]}  Qd7 {[%clk 0:00:58]} 21. Nd6 {[%clk 0:01:31]}  Rxe1+ {[%clk 0:00:55]} 22. Rxe1 {[%clk 0:01:32]}  Nf6 {[%clk 0:00:48]} 23. b5 {[%clk 0:01:02]}  Nd5 {[%clk 0:00:47]} 24. f4 {[%clk 0:00:41]}  a4 {[%clk 0:00:45]} 25. Kg2 {[%clk 0:00:30]}  h5 {[%clk 0:00:45]} 26. h3 {[%clk 0:00:30]}  Bf8 {[%clk 0:00:37]} 27. Ne4 {[%clk 0:00:14]}  Bxe4+ {[%clk 0:00:34]} 28. Rxe4 {[%clk 0:00:15]}  Bxc5 {[%clk 0:00:34]} 29. Nf3 {[%clk 0:00:13]}  c3 {[%clk 0:00:26]} 30. Qc2 {[%clk 0:00:08]}  Bxf2 {[%clk 0:00:20]} 31. Qxf2 {[%clk 0:00:09]}  Qxb5 {[%clk 0:00:17]} 32. Nd4 {[%clk 0:00:09]}  Qd3 {[%clk 0:00:16]} 33. Re5 {[%clk 0:00:08]}  Rd8 {[%clk 0:00:13]} 34. f5 {[%clk 0:00:08]}  Nf6 {[%clk 0:00:05]} 35. fxg6 {[%clk 0:00:08]}  Qxd4 {[%clk 0:00:05]} 36. gxf7+ {[%clk 0:00:07]}  Kxf7 {[%clk 0:00:04]} 37. Qxd4 {[%clk 0:00:06]}  Rxd4 {[%clk 0:00:05]} 38. Rc5 {[%clk 0:00:06]}  Rd2+ {[%clk 0:00:05]} 39. Kf3 {[%clk 0:00:06]}  c2 {[%clk 0:00:06]} 40. Ke3 {[%clk 0:00:07]}  Rh2 {[%clk 0:00:06]} 41. g4 {[%clk 0:00:08]}  hxg4 {[%clk 0:00:06]} 42. hxg4 {[%clk 0:00:09]}  Nxg4+ {[%clk 0:00:07]} 43. Kd3 {[%clk 0:00:09]}  Nf6 {[%clk 0:00:07]} 44. Rxc2 {[%clk 0:00:09]}  Rxc2 {[%clk 0:00:06]} 45. Kxc2 {[%clk 0:00:10]}  Ke6 {[%clk 0:00:07]} 46. Kc3 {[%clk 0:00:11]}  Nd5+ {[%clk 0:00:05]} 47. Kc4 {[%clk 0:00:11]}  Kd6 {[%clk 0:00:03]} 48. Kb5 {[%clk 0:00:11]}  Nc3+ {[%clk 0:00:03]} 49. Kb4 {[%clk 0:00:12]}  Nd5+ {[%clk 0:00:03]} 50. Kxa4 {[%clk 0:00:12]}  Kc6 {[%clk 0:00:04]} 51. Kb3 {[%clk 0:00:13]}  Kb5 {[%clk 0:00:04]} 52. Ka2 {[%clk 0:00:13]}  Nb6 {[%clk 0:00:04]} 53. Kb3 {[%clk 0:00:13]}  Ka5 {[%clk 0:00:05]} 54. Ka2 {[%clk 0:00:13]}  Ka4 {[%clk 0:00:06]} 55. Kb2 {[%clk 0:00:13]}  Nc4+ {[%clk 0:00:06]} 56. Kc3 {[%clk 0:00:14]}  Nxa3 {[%clk 0:00:07]} 57. Kb2 {[%clk 0:00:14]}  b5 {[%clk 0:00:07]} 58. Ka2 {[%clk 0:00:13]}  b4 {[%clk 0:00:07]} 0-1


[Site "https://www.chess.com"]

[Event "Titled Tuesday Blitz May 23 Late 2023"]
[White "ThaBarWa"]
[Black "Kovalevsky, Stanislav"]
[BlackFideId "13508598"]
[WhiteElo "2335"]
[BlackElo "2174"]
[Result "1-0"]
[Round "11"]
[TimeControl "180+2"]
[Date "2023.05.23"]
[WhiteClock "0:01:00"]
[BlackClock "0:00:02"]

1. d4 {[%clk 0:03:00]}  Nf6 {[%clk 0:02:59]} 2. c4 {[%clk 0:03:01]}  e6 {[%clk 0:02:59]} 3. Nc3 {[%clk 0:03:02]}  Bb4 {[%clk 0:02:59]} 4. f3 {[%clk 0:03:01]}  d5 {[%clk 0:02:51]} 5. a3 {[%clk 0:03:02]}  Bxc3+ {[%clk 0:02:49]} 6. bxc3 {[%clk 0:03:03]}  O-O {[%clk 0:02:49]} 7. e3 {[%clk 0:03:00]}  c5 {[%clk 0:02:47]} 8. cxd5 {[%clk 0:03:01]}  exd5 {[%clk 0:02:46]} 9. Bd3 {[%clk 0:03:01]}  Nc6 {[%clk 0:02:42]} 10. Ne2 {[%clk 0:03:01]}  Re8 {[%clk 0:02:30]} 11. O-O {[%clk 0:03:01]}  b6 {[%clk 0:02:17]} 12. Ng3 {[%clk 0:02:58]}  h6 {[%clk 0:02:12]} 13. Ra2 {[%clk 0:02:56]}  Qd6 {[%clk 0:02:05]} 14. a4 {[%clk 0:02:43]}  Bd7 {[%clk 0:02:00]} 15. Re2 {[%clk 0:02:38]}  cxd4 {[%clk 0:01:56]} 16. cxd4 {[%clk 0:02:36]}  Nb4 {[%clk 0:01:52]} 17. Bb1 {[%clk 0:02:36]}  a5 {[%clk 0:01:38]} 18. e4 {[%clk 0:02:34]}  dxe4 {[%clk 0:01:27]} 19. fxe4 {[%clk 0:02:35]}  Bg4 {[%clk 0:01:21]} 20. e5 {[%clk 0:02:30]}  Bxe2 {[%clk 0:01:14]} 21. Nxe2 {[%clk 0:02:30]}  Qe7 {[%clk 0:01:14]} 22. Ng3 {[%clk 0:02:24]}  Nfd5 {[%clk 0:01:10]} 23. Nf5 {[%clk 0:02:19]}  Qe6 {[%clk 0:01:08]} 24. Qg4 {[%clk 0:02:15]}  Qg6 {[%clk 0:00:44]} 25. Ne7+ {[%clk 0:02:14]}  Nxe7 {[%clk 0:00:40]} 26. Bxg6 {[%clk 0:02:14]}  Nxg6 {[%clk 0:00:40]} 27. Qf5 {[%clk 0:01:54]}  Ra7 {[%clk 0:00:31]} 28. g3 {[%clk 0:01:49]}  Nd5 {[%clk 0:00:26]} 29. h4 {[%clk 0:01:46]}  Re6 {[%clk 0:00:23]} 30. h5 {[%clk 0:01:45]}  Nge7 {[%clk 0:00:23]} 31. Qxf7+ {[%clk 0:01:45]}  Kh7 {[%clk 0:00:22]} 32. Qxe6 {[%clk 0:01:45]}  Rc7 {[%clk 0:00:20]} 33. Bxh6 {[%clk 0:01:38]}  Rc6 {[%clk 0:00:17]} 34. Qd7 {[%clk 0:01:26]}  Kxh6 {[%clk 0:00:16]} 35. Rf7 {[%clk 0:01:24]}  Rc1+ {[%clk 0:00:15]} 36. Kf2 {[%clk 0:01:21]}  Rc2+ {[%clk 0:00:14]} 37. Ke1 {[%clk 0:01:21]}  Ne3 {[%clk 0:00:09]} 38. Rxe7 {[%clk 0:01:05]}  Ng2+ {[%clk 0:00:08]} 39. Kf1 {[%clk 0:01:05]}  Ne3+ {[%clk 0:00:08]} 40. Kg1 {[%clk 0:01:06]}  Rc1+ {[%clk 0:00:02]} 41. Kf2 {[%clk 0:01:05]}  Nd1+ {[%clk 0:00:03]} 42. Kf3 {[%clk 0:01:05]}  Nc3 {[%clk 0:00:02]} 43. Qe6+ {[%clk 0:01:00]}  Kh7 {[%clk 0:00:01]} 44. Qg6+ {[%clk 0:00:59]}  Kh8 {[%clk 0:00:02]} 45. Re8# {[%clk 0:01:00]} 1-0


[Site "https://www.chess.com"]